{"text_format":"3","workbook":"xlsx","n_sheets":4,"sheets":["Aloitus","Häiden budjetti","Puvut-Juhla-Musiikki-Kuvat","Koristeet-Kukat-Lahjat-Matkat"],"not_rendered":{"charts":1,"defined_names":22},"read":"whole","date_system":"1900"}

{"sheet":"Aloitus","index":0,"n_rows":7,"n_cols":2,"rows_kept":7}
[null,"TIETOJA TÄSTÄ MALLISTA"]
[null,"Seuraa häiden kustannuksia tämän mallin avulla."]
[null,"Kirjoita eri luokkien arviot ja toteutuneet kustannukset erillisiin laskentataulukoihin."]
[null,"Häiden budjetin yhteenveto ja kaavio päivitetään automaattisesti puolestasi."]
[null,"Huomautus: "]
[null,"Kunkin laskentataulukon sarakkeessa A annetaan lisäohjeita. Tämä teksti on piilotettu tarkoituksella. Jos haluat poistaa tekstin, valitse sarake A ja valitse sitten POISTA. Jos haluat tuoda tekstin näkyviin, valitse sarake A ja muuta sitten fonttiväriä."]
[null,"Jos haluat lisätietoja jostakin taulukosta, paina kyseisessä taulukossa VAIHTO ja sitten F10, valitse TAULUKKO-vaihtoehto ja valitse sitten VAIHTOEHTOINEN TEKSTI."]

{"sheet":"Häiden budjetti","index":1,"n_rows":19,"n_cols":6,"rows_kept":19,"merged":[[2,2,4,5],[18,2,42,5]]}
["Luo häiden budjetti tähän laskentataulukkoon. Kirjoita tiedot Puvut-Juhla-Musiikki-Kuvat-laskentataulukon ja Koristeet-Kukat-Lahjat-Matkat-laskentataulukon taulukoihin, jotta tämän laskentataulukon yhteenveto ja kaavio päivittyvät. Tämän sarakkeen soluissa on hyödyllisiä ohjeita tämän laskentataulukon käyttöön. Hääpäivä selite on solussa C1.",null,"Hääpäivä:"]
["Kirjoita hääpäivä soluun C2. Päiviä jäljellä lasketaan automaattisesti soluun E2.",null,{"$f":"TODAY()+365","v":"2019-12-04"},"Päiviä jäljellä:",{"$f":"C2-TODAY()","v":365}]
["Tämän laskentataulukon otsikko on solussa C3. Seuraava ohje on solussa A6.",null,"Häiden budjetin yhteenveto"]
[]
[]
["Budjetin yhteenvetotaulukko päivittyy automaattisesti ja alkaa solusta C6. Seuraava ohje on solussa A19.",null,"LUOKKA","ARVIOT","TOTEUTUNEET","YLI/ALLE"]
[null,null,"Puvut",{"$f":"Puvut_Yhteensä_arv","v":{"v":9490,"d":"9,490.00"}},{"$f":"Puvut_Yhteensä_tot","v":{"v":9770,"d":"9,770.00"}},{"$f":"BudjetinYhteenveto[[#This Row],[ARVIOT]]-BudjetinYhteenveto[[#This Row],[TOTEUTUNEET]]","v":{"v":-280,"d":"-280.00"}}]
[null,null,"Hääjuhla",{"$f":"Juhla_yhteensä_arv","v":{"v":1050,"d":"1,050.00"}},{"$f":"Juhla_yhteensä_tot","v":{"v":928,"d":"928.00"}},{"$f":"BudjetinYhteenveto[[#This Row],[ARVIOT]]-BudjetinYhteenveto[[#This Row],[TOTEUTUNEET]]","v":{"v":122,"d":"122.00"}}]
[null,null,"Musiikki",{"$f":"Musiikki_viihde_yhteensä_arv","v":{"v":600,"d":"600.00"}},{"$f":"Musiikki_viihde_yhteensä_tot","v":{"v":400,"d":"400.00"}},{"$f":"BudjetinYhteenveto[[#This Row],[ARVIOT]]-BudjetinYhteenveto[[#This Row],[TOTEUTUNEET]]","v":{"v":200,"d":"200.00"}}]
[null,null,"Tulostaminen",{"$f":"Paperitavaroiden_tulostus_yhteensä_arv","v":{"v":935,"d":"935.00"}},{"$f":"Paperitavaroiden_tulostus_yhteensä_tot","v":{"v":870,"d":"870.00"}},{"$f":"BudjetinYhteenveto[[#This Row],[ARVIOT]]-BudjetinYhteenveto[[#This Row],[TOTEUTUNEET]]","v":{"v":65,"d":"65.00"}}]
[null,null,"Valokuvaus",{"$f":"Valokuvaus_yhteensä_arv","v":{"v":1625,"d":"1,625.00"}},{"$f":"Valokuvaus_yhteensä_tot","v":{"v":1575,"d":"1,575.00"}},{"$f":"BudjetinYhteenveto[[#This Row],[ARVIOT]]-BudjetinYhteenveto[[#This Row],[TOTEUTUNEET]]","v":{"v":50,"d":"50.00"}}]
[null,null,"Koristeet",{"$f":"Koristeet_yhteensä_arv","v":{"v":700,"d":"700.00"}},{"$f":"Koristeet_yhteensä_tot","v":{"v":720,"d":"720.00"}},{"$f":"BudjetinYhteenveto[[#This Row],[ARVIOT]]-BudjetinYhteenveto[[#This Row],[TOTEUTUNEET]]","v":{"v":-20,"d":"-20.00"}}]
[null,null,"Kukat",{"$f":"Kukat_yhteensä_arv","v":{"v":900,"d":"900.00"}},{"$f":"Kukat_yhteensä_tot","v":{"v":850,"d":"850.00"}},{"$f":"BudjetinYhteenveto[[#This Row],[ARVIOT]]-BudjetinYhteenveto[[#This Row],[TOTEUTUNEET]]","v":{"v":50,"d":"50.00"}}]
[null,null,"Lahjat",{"$f":"Lahjat_yhteensä_arv","v":{"v":1345,"d":"1,345.00"}},{"$f":"Lahjat_yhteensä_tot","v":{"v":1075,"d":"1,075.00"}},{"$f":"BudjetinYhteenveto[[#This Row],[ARVIOT]]-BudjetinYhteenveto[[#This Row],[TOTEUTUNEET]]","v":{"v":270,"d":"270.00"}}]
[null,null,"Matkakulut",{"$f":"Matkakulut_yhteensä_arv","v":{"v":100,"d":"100.00"}},{"$f":"Matkakulut_yhteensä_tot","v":{"v":165,"d":"165.00"}},{"$f":"BudjetinYhteenveto[[#This Row],[ARVIOT]]-BudjetinYhteenveto[[#This Row],[TOTEUTUNEET]]","v":{"v":-65,"d":"-65.00"}}]
[null,null,"Muut",{"$f":"Muut_kulut_yhteensä_arv","v":{"v":885,"d":"885.00"}},{"$f":"Muut_kulut_yhteensä_tot","v":{"v":1021,"d":"1,021.00"}},{"$f":"BudjetinYhteenveto[[#This Row],[ARVIOT]]-BudjetinYhteenveto[[#This Row],[TOTEUTUNEET]]","v":{"v":-136,"d":"-136.00"}}]
[null,null,"Kulut yhteensä",{"$f":"SUBTOTAL(109,BudjetinYhteenveto[ARVIOT])","v":{"v":17630,"d":"17,630.00"}},{"$f":"SUBTOTAL(109,BudjetinYhteenveto[TOTEUTUNEET])","v":{"v":17374,"d":"17,374.00"}},{"$f":"SUBTOTAL(109,BudjetinYhteenveto[YLI/ALLE])","v":{"v":256,"d":"256.00"}}]
[]
["Solun C19 ympyräkaavio päivittyy automaattisesti.",null,"Ympyräkaavio, josta selviää kunkin luokan kulujen prosenttiosuus, on tässä solussa."]

{"sheet":"Puvut-Juhla-Musiikki-Kuvat","index":2,"n_rows":56,"n_cols":6,"rows_kept":56,"merged":[[16,1,16,4],[28,1,28,4],[29,1,29,4],[35,1,35,4],[48,1,48,4]]}
["Kirjoita kunkin luokka arviot ja toteutuneet kulut niitä vastaaviin taulukoihin tässä laskentataulukossa. Budjetin yli tai alle menevät summat lasketaan automaattisesti. Puvut-selite on solussa oikealla. Tämän sarakkeen soluissa on hyödyllisiä ohjeita tämän laskentataulukon käyttöön. Aloita siirtymällä nuolella alaspäin.","Puvut",{"$nulls":3}," "]
[" Kirjoita tiedot Puvut-taulukkoon alkaen oikealla olevasta solusta. Seuraava ohje on solussa A18.","LUOKKA","ARVIOT","TOTEUTUNEET","YLI/ALLE"," "]
[null,"Kihlasormus/-sormukset",{"v":1500,"d":"1,500.00"},{"v":1500,"d":"1,500.00"},{"$f":"'Puvut-Juhla-Musiikki-Kuvat'!$C3-'Puvut-Juhla-Musiikki-Kuvat'!$D3","v":{"v":0,"d":"0.00"}}]
[null,"Puolison 1 sormus",{"v":2000,"d":"2,000.00"},{"v":2300,"d":"2,300.00"},{"$f":"'Puvut-Juhla-Musiikki-Kuvat'!$C4-'Puvut-Juhla-Musiikki-Kuvat'!$D4","v":{"v":-300,"d":"-300.00 "}}]
[null,"Puolison 1 puku",{"v":3000,"d":"3,000.00"},{"v":2750,"d":"2,750.00"},{"$f":"'Puvut-Juhla-Musiikki-Kuvat'!$C5-'Puvut-Juhla-Musiikki-Kuvat'!$D5","v":{"v":250,"d":"250.00"}}]
[null,"Puolison 1 huntu/hiuskoriste",{"v":500,"d":"500.00"},{"v":500,"d":"500.00"},{"$f":"'Puvut-Juhla-Musiikki-Kuvat'!$C6-'Puvut-Juhla-Musiikki-Kuvat'!$D6","v":{"v":0,"d":"0.00"}}]
[null,"Puolison 1 kengät",{"v":350,"d":"350.00"},{"v":300,"d":"300.00"},{"$f":"'Puvut-Juhla-Musiikki-Kuvat'!$C7-'Puvut-Juhla-Musiikki-Kuvat'!$D7","v":{"v":50,"d":"50.00"}}]
[null,"Puolison 1 korut",{"v":400,"d":"400.00"},{"v":550,"d":"550.00"},{"$f":"'Puvut-Juhla-Musiikki-Kuvat'!$C8-'Puvut-Juhla-Musiikki-Kuvat'!$D8","v":{"v":-150,"d":"-150.00 "}}]
[null,"Puolison 1 sukkahousut",{"v":20,"d":"20.00"},{"v":20,"d":"20.00"},{"$f":"'Puvut-Juhla-Musiikki-Kuvat'!$C9-'Puvut-Juhla-Musiikki-Kuvat'!$D9","v":{"v":0,"d":"0.00"}}]
[null,"Puolison 2 sormus",{"v":300,"d":"300.00"},{"v":250,"d":"250.00"},{"$f":"'Puvut-Juhla-Musiikki-Kuvat'!$C10-'Puvut-Juhla-Musiikki-Kuvat'!$D10","v":{"v":50,"d":"50.00"}}]
[null,"Puolison 2 puku",{"v":300,"d":"300.00"},{"v":350,"d":"350.00"},{"$f":"'Puvut-Juhla-Musiikki-Kuvat'!$C11-'Puvut-Juhla-Musiikki-Kuvat'!$D11","v":{"v":-50,"d":"-50.00 "}}]
[null,"Puolison 2 huntu/hiuskoriste",{"v":500,"d":"500.00"},{"v":500,"d":"500.00"},{"$f":"'Puvut-Juhla-Musiikki-Kuvat'!$C12-'Puvut-Juhla-Musiikki-Kuvat'!$D12","v":{"v":0,"d":"0.00"}}]
[null,"Puolison 2 kengät",{"v":200,"d":"200.00"},{"v":175,"d":"175.00"},{"$f":"'Puvut-Juhla-Musiikki-Kuvat'!$C13-'Puvut-Juhla-Musiikki-Kuvat'!$D13","v":{"v":25,"d":"25.00"}}]
[null,"Puolison 2 korut",{"v":400,"d":"400.00"},{"v":550,"d":"550.00"},{"$f":"'Puvut-Juhla-Musiikki-Kuvat'!$C14-'Puvut-Juhla-Musiikki-Kuvat'!$D14","v":{"v":-150,"d":"-150.00 "}}]
[null,"Puolison 2 sukkahousut",{"v":20,"d":"20.00"},{"v":25,"d":"25.00"},{"$f":"'Puvut-Juhla-Musiikki-Kuvat'!$C15-'Puvut-Juhla-Musiikki-Kuvat'!$D15","v":{"v":-5,"d":"-5.00 "}}]
[null,"Puvut yhteensä",{"$f":"SUBTOTAL(109,Puvut[ARVIOT])","v":{"v":9490,"d":"9,490.00"}},{"$f":"SUBTOTAL(109,Puvut[TOTEUTUNEET])","v":{"v":9770,"d":"9,770.00"}},{"$f":"SUBTOTAL(109,Puvut[YLI/ALLE])","v":{"v":-280,"d":"-280.00 "}}]
[]
["Hääjuhla-selite on solussa oikealla.","Hääjuhla*"]
["Kirjoita hääjuhlan kustannukset viihdettä ja koristeita lukuun ottamatta oikeanpuoleisesta solusta alkavaan taulukkoon. Seuraava ohje on solussa A31.","LUOKKA","ARVIOT","TOTEUTUNEET","YLI/ALLE"]
[null,"Tilamaksut",{"v":200,"d":"200.00"},{"v":150,"d":"150.00"},{"$f":"'Puvut-Juhla-Musiikki-Kuvat'!$C20-'Puvut-Juhla-Musiikki-Kuvat'!$D20","v":{"v":50,"d":"50.00"}}]
[null,"Pöydät ja tuolit",{"v":100,"d":"100.00"},{"v":50,"d":"50.00"},{"$f":"'Puvut-Juhla-Musiikki-Kuvat'!$C21-'Puvut-Juhla-Musiikki-Kuvat'!$D21","v":{"v":50,"d":"50.00"}}]
[null,"Ruoka",{"v":0,"d":"0.00"},{"v":0,"d":"0.00"},{"$f":"'Puvut-Juhla-Musiikki-Kuvat'!$C22-'Puvut-Juhla-Musiikki-Kuvat'!$D22","v":{"v":0,"d":"0.00"}}]
[null,"Juomat",{"v":0,"d":"0.00"},{"v":0,"d":"0.00"},{"$f":"'Puvut-Juhla-Musiikki-Kuvat'!$C23-'Puvut-Juhla-Musiikki-Kuvat'!$D23","v":{"v":0,"d":"0.00"}}]
[null,"Liinavaatteet",{"v":0,"d":"0.00"},{"v":0,"d":"0.00"},{"$f":"'Puvut-Juhla-Musiikki-Kuvat'!$C24-'Puvut-Juhla-Musiikki-Kuvat'!$D24","v":{"v":0,"d":"0.00"}}]
[null,"Kakku",{"v":700,"d":"700.00"},{"v":700,"d":"700.00"},{"$f":"'Puvut-Juhla-Musiikki-Kuvat'!$C25-'Puvut-Juhla-Musiikki-Kuvat'!$D25","v":{"v":0,"d":"0.00"}}]
[null,"Pienet lahjat vieraille",{"v":50,"d":"50.00"},{"v":28,"d":"28.00"},{"$f":"'Puvut-Juhla-Musiikki-Kuvat'!$C26-'Puvut-Juhla-Musiikki-Kuvat'!$D26","v":{"v":22,"d":"22.00"}}]
[null,"Henkilökunta ja palvelurahat",{"v":0,"d":"0.00"},{"v":0,"d":"0.00"},{"$f":"'Puvut-Juhla-Musiikki-Kuvat'!$C27-'Puvut-Juhla-Musiikki-Kuvat'!$D27","v":{"v":0,"d":"0.00"}}]
[null,"Hääjuhla yhteensä",{"$f":"SUBTOTAL(109,Hääjuhla[ARVIOT])","v":{"v":1050,"d":"1,050.00"}},{"$f":"SUBTOTAL(109,Hääjuhla[TOTEUTUNEET])","v":{"v":928,"d":"928.00"}},{"$f":"SUBTOTAL(109,Hääjuhla[YLI/ALLE])","v":{"v":122,"d":"122.00"}}]
[null,"* Ei sisällä viihdettä ja koristeita"]
[]
["Musiikki tai viihde -selite on oikeanpuoleisessa solussa.","Musiikki/viihde"]
["Kirjoita tiedot Musiikki-taulukkoon, joka alkaa oikealla olevasta solusta. Seuraava ohje on solussa A37.","LUOKKA","ARVIOT","TOTEUTUNEET","YLI/ALLE"]
[null,"Hääseremonian muusikot",{"v":400,"d":"400.00"},{"v":400,"d":"400.00"},{"$f":"'Puvut-Juhla-Musiikki-Kuvat'!$C33-'Puvut-Juhla-Musiikki-Kuvat'!$D33","v":{"v":0,"d":"0.00"}}]
[null,"Juhlatilaisuuden bändi/DJ",{"v":200,"d":"200.00"},{"v":0,"d":"0.00"},{"$f":"'Puvut-Juhla-Musiikki-Kuvat'!$C34-'Puvut-Juhla-Musiikki-Kuvat'!$D34","v":{"v":200,"d":"200.00"}}]
[null,"Musiikki/viihde yhteensä",{"$f":"SUBTOTAL(109,Musiikki[ARVIOT])","v":{"v":600,"d":"600.00"}},{"$f":"SUBTOTAL(109,Musiikki[TOTEUTUNEET])","v":{"v":400,"d":"400.00"}},{"$f":"SUBTOTAL(109,Musiikki[YLI/ALLE])","v":{"v":200,"d":"200.00"}}]
[]
["Tulosteet-selite on oikeanpuoleisessa solussa.","Tulosteet"]
["Kirjoita tiedot Tulosteet-taulukkoon, joka alkaa oikealla olevasta solusta. Seuraava ohje on solussa A50.","LUOKKA","ARVIOT","TOTEUTUNEET","YLI/ALLE"]
[null,"Kutsut",{"v":500,"d":"500.00"},{"v":450,"d":"450.00"},{"$f":"'Puvut-Juhla-Musiikki-Kuvat'!$C39-'Puvut-Juhla-Musiikki-Kuvat'!$D39","v":{"v":50,"d":"50.00"}}]
[null,"Ilmoitukset",{"v":200,"d":"200.00"},{"v":175,"d":"175.00"},{"$f":"'Puvut-Juhla-Musiikki-Kuvat'!$C40-'Puvut-Juhla-Musiikki-Kuvat'!$D40","v":{"v":25,"d":"25.00"}}]
[null,"Kiitoskortit",{"v":100,"d":"100.00"},{"v":100,"d":"100.00"},{"$f":"'Puvut-Juhla-Musiikki-Kuvat'!$C41-'Puvut-Juhla-Musiikki-Kuvat'!$D41","v":{"v":0,"d":"0.00"}}]
[null,"Omat paperitavarat",{"v":0,"d":"0.00"},{"v":0,"d":"0.00"},{"$f":"'Puvut-Juhla-Musiikki-Kuvat'!$C42-'Puvut-Juhla-Musiikki-Kuvat'!$D42","v":{"v":0,"d":"0.00"}}]
[null,"Vieraskirja",{"v":25,"d":"25.00"},{"v":25,"d":"25.00"},{"$f":"'Puvut-Juhla-Musiikki-Kuvat'!$C43-'Puvut-Juhla-Musiikki-Kuvat'!$D43","v":{"v":0,"d":"0.00"}}]
[null,"Ohjelmat",{"v":75,"d":"75.00"},{"v":80,"d":"80.00"},{"$f":"'Puvut-Juhla-Musiikki-Kuvat'!$C44-'Puvut-Juhla-Musiikki-Kuvat'!$D44","v":{"v":-5,"d":"-5.00 "}}]
[null,"Juhlatilaisuuden lautasliinat",{"v":35,"d":"35.00"},{"v":40,"d":"40.00"},{"$f":"'Puvut-Juhla-Musiikki-Kuvat'!$C45-'Puvut-Juhla-Musiikki-Kuvat'!$D45","v":{"v":-5,"d":"-5.00 "}}]
[null,"Tulitikkurasiat",{"v":0,"d":"0.00"},{"v":0,"d":"0.00"},{"$f":"'Puvut-Juhla-Musiikki-Kuvat'!$C46-'Puvut-Juhla-Musiikki-Kuvat'!$D46","v":{"v":0,"d":"0.00"}}]
[null,"Kalligrafia",{"v":0,"d":"0.00"},{"v":0,"d":"0.00"},{"$f":"'Puvut-Juhla-Musiikki-Kuvat'!$C47-'Puvut-Juhla-Musiikki-Kuvat'!$D47","v":{"v":0,"d":"0.00"}}]
[null,"Tulosteet yhteensä",{"$f":"SUBTOTAL(109,Tulosteet[ARVIOT])","v":{"v":935,"d":"935.00"}},{"$f":"SUBTOTAL(109,Tulosteet[TOTEUTUNEET])","v":{"v":870,"d":"870.00"}},{"$f":"SUBTOTAL(109,Tulosteet[YLI/ALLE])","v":{"v":65,"d":"65.00"}}]
[]
["Valokuvaus-selite on solussa oikealla.","Valokuvaus"]
["Kirjoita tiedot Valokuvaus-taulukkoon, joka alkaa oikealla olevasta solusta.","LUOKKA","ARVIOT","TOTEUTUNEET","YLI/ALLE"]
[null,"Muodolliset kuvat",{"v":1300,"d":"1,300.00"},{"v":1300,"d":"1,300.00"},{"$f":"'Puvut-Juhla-Musiikki-Kuvat'!$C52-'Puvut-Juhla-Musiikki-Kuvat'!$D52","v":{"v":0,"d":"0.00"}}]
[null,"Ylimääräiset kopiot",{"v":25,"d":"25.00"},{"v":25,"d":"25.00"},{"$f":"'Puvut-Juhla-Musiikki-Kuvat'!$C53-'Puvut-Juhla-Musiikki-Kuvat'!$D53","v":{"v":0,"d":"0.00"}}]
[null,"Valokuva-albumit",{"v":100,"d":"100.00"},{"v":100,"d":"100.00"},{"$f":"'Puvut-Juhla-Musiikki-Kuvat'!$C54-'Puvut-Juhla-Musiikki-Kuvat'!$D54","v":{"v":0,"d":"0.00"}}]
[null,"Videokuvaus",{"v":200,"d":"200.00"},{"v":150,"d":"150.00"},{"$f":"'Puvut-Juhla-Musiikki-Kuvat'!$C55-'Puvut-Juhla-Musiikki-Kuvat'!$D55","v":{"v":50,"d":"50.00"}}]
[null,"Valokuvaus yhteensä",{"$f":"SUBTOTAL(109,Valokuvaus[ARVIOT])","v":{"v":1625,"d":"1,625.00"}},{"$f":"SUBTOTAL(109,Valokuvaus[TOTEUTUNEET])","v":{"v":1575,"d":"1,575.00"}},{"$f":"SUBTOTAL(109,Valokuvaus[YLI/ALLE])","v":{"v":50,"d":"50.00"}}]

{"sheet":"Koristeet-Kukat-Lahjat-Matkat","index":3,"n_rows":48,"n_cols":5,"rows_kept":48,"merged":[[8,1,8,4],[9,1,9,4],[18,1,18,4],[27,1,27,4],[34,1,34,4]]}
["Kirjoita kunkin luokka arviot ja toteutuneet kulut niitä vastaaviin taulukoihin tässä laskentataulukossa. Budjetin yli tai alle menevät summat lasketaan automaattisesti. Koristeet-selite on solussa oikealla. Tämän sarakkeen soluissa on hyödyllisiä ohjeita tämän laskentataulukon käyttöön. Aloita siirtymällä nuolella alaspäin.","Koristeet*"]
["Kirjoita koristelukustannukset kukkia lukuun ottamatta oikeanpuoleisesta solusta alkavaan taulukkoon. Seuraava ohje on solussa A11.","LUOKKA","ARVIOT","TOTEUTUNEET","YLI/ALLE"]
[null,"Istuinten rusetit",{"v":0,"d":"0.00"},{"v":0,"d":"0.00"},{"$f":"'Koristeet-Kukat-Lahjat-Matkat'!$C3-'Koristeet-Kukat-Lahjat-Matkat'!$D3","v":{"v":0,"d":"0.00"}}]
[null,"Pöytäkoristeet",{"v":300,"d":"300.00"},{"v":320,"d":"320.00"},{"$f":"'Koristeet-Kukat-Lahjat-Matkat'!$C4-'Koristeet-Kukat-Lahjat-Matkat'!$D4","v":{"v":-20,"d":"-20.00 "}}]
[null,"Kynttilät",{"v":100,"d":"100.00"},{"v":75,"d":"75.00"},{"$f":"'Koristeet-Kukat-Lahjat-Matkat'!$C5-'Koristeet-Kukat-Lahjat-Matkat'!$D5","v":{"v":25,"d":"25.00"}}]
[null,"Valaistus",{"v":100,"d":"100.00"},{"v":75,"d":"75.00"},{"$f":"'Koristeet-Kukat-Lahjat-Matkat'!$C6-'Koristeet-Kukat-Lahjat-Matkat'!$D6","v":{"v":25,"d":"25.00"}}]
[null,"Ilmapallot",{"v":200,"d":"200.00"},{"v":250,"d":"250.00"},{"$f":"'Koristeet-Kukat-Lahjat-Matkat'!$C7-'Koristeet-Kukat-Lahjat-Matkat'!$D7","v":{"v":-50,"d":"-50.00 "}}]
[null,"Koristeet yhteensä",{"$f":"SUBTOTAL(109,Koristeet[ARVIOT])","v":{"v":700,"d":"700.00"}},{"$f":"SUBTOTAL(109,Koristeet[TOTEUTUNEET])","v":{"v":720,"d":"720.00"}},{"$f":"SUBTOTAL(109,Koristeet[YLI/ALLE])","v":{"v":-20,"d":"-20.00 "}}]
[null,"* Ei sisällä kukkia"]
[]
["Kukat-selite on solussa oikealla.","Kukat"]
["Kirjoita tiedot Kukat-taulukkoon alkaen oikealla olevasta solusta. Seuraava ohje on solussa A20.","LUOKKA","ARVIOT","TOTEUTUNEET","YLI/ALLE"]
[null,"Kukkakimput",{"v":500,"d":"500.00"},{"v":450,"d":"450.00"},{"$f":"'Koristeet-Kukat-Lahjat-Matkat'!$C13-'Koristeet-Kukat-Lahjat-Matkat'!$D13","v":{"v":50,"d":"50.00"}}]
[null,"Napinläpikukkaset",{"v":0,"d":"0.00"},{"v":0,"d":"0.00"},{"$f":"'Koristeet-Kukat-Lahjat-Matkat'!$C14-'Koristeet-Kukat-Lahjat-Matkat'!$D14","v":{"v":0,"d":"0.00"}}]
[null,"Rintakukat",{"v":0,"d":"0.00"},{"v":0,"d":"0.00"},{"$f":"'Koristeet-Kukat-Lahjat-Matkat'!$C15-'Koristeet-Kukat-Lahjat-Matkat'!$D15","v":{"v":0,"d":"0.00"}}]
[null,"Seremonia",{"v":400,"d":"400.00"},{"v":400,"d":"400.00"},{"$f":"'Koristeet-Kukat-Lahjat-Matkat'!$C16-'Koristeet-Kukat-Lahjat-Matkat'!$D16","v":{"v":0,"d":"0.00"}}]
[null,"Hääjuhla",{"v":0,"d":"0.00"},{"v":0,"d":"0.00"},{"$f":"'Koristeet-Kukat-Lahjat-Matkat'!$C17-'Koristeet-Kukat-Lahjat-Matkat'!$D17","v":{"v":0,"d":"0.00"}}]
[null,"Kukat yhteensä",{"$f":"SUBTOTAL(109,Kukat[ARVIOT])","v":{"v":900,"d":"900.00"}},{"$f":"SUBTOTAL(109,Kukat[TOTEUTUNEET])","v":{"v":850,"d":"850.00"}},{"$f":"SUBTOTAL(109,Kukat[YLI/ALLE])","v":{"v":50,"d":"50.00"}}]
[]
["Lahjat-selite on solussa oikealla.","Lahjat"]
["Kirjoita tiedot Lahjat-taulukkoon alkaen oikealla olevasta solusta. Seuraava ohje on solussa A29.","LUOKKA","ARVIOT","TOTEUTUNEET","YLI/ALLE"]
[null,"Avustajat",{"v":1000,"d":"1,000.00"},{"v":400,"d":"400.00"},{"$f":"'Koristeet-Kukat-Lahjat-Matkat'!$C22-'Koristeet-Kukat-Lahjat-Matkat'!$D22","v":{"v":600,"d":"600.00"}}]
[null,"Puoliso 1",{"v":150,"d":"150.00"},{"v":200,"d":"200.00"},{"$f":"'Koristeet-Kukat-Lahjat-Matkat'!$C23-'Koristeet-Kukat-Lahjat-Matkat'!$D23","v":{"v":-50,"d":"-50.00 "}}]
[null,"Puoliso 2",{"v":150,"d":"150.00"},{"v":200,"d":"200.00"},{"$f":"'Koristeet-Kukat-Lahjat-Matkat'!$C24-'Koristeet-Kukat-Lahjat-Matkat'!$D24","v":{"v":-50,"d":"-50.00 "}}]
[null,"Vanhemmat",{"v":25,"d":"25.00"},{"v":25,"d":"25.00"},{"$f":"'Koristeet-Kukat-Lahjat-Matkat'!$C25-'Koristeet-Kukat-Lahjat-Matkat'!$D25","v":{"v":0,"d":"0.00"}}]
[null,"Lukijat / muut osallistujat",{"v":20,"d":"20.00"},{"v":250,"d":"250.00"},{"$f":"'Koristeet-Kukat-Lahjat-Matkat'!$C26-'Koristeet-Kukat-Lahjat-Matkat'!$D26","v":{"v":-230,"d":"-230.00 "}}]
[null,"Lahjat yhteensä",{"$f":"SUBTOTAL(109,Lahjat[ARVIOT])","v":{"v":1345,"d":"1,345.00"}},{"$f":"SUBTOTAL(109,Lahjat[TOTEUTUNEET])","v":{"v":1075,"d":"1,075.00"}},{"$f":"SUBTOTAL(109,Lahjat[YLI/ALLE])","v":{"v":270,"d":"270.00"}}]
[]
["Matkustus-selite on oikeanpuoleisessa solussa.","Matkustus"]
["Kirjoita tiedot Matkustus-taulukkoon alkaen oikealla olevasta solusta. Seuraava ohje on solussa A36.","LUOKKA","ARVIOT","TOTEUTUNEET","YLI/ALLE"]
[null,"Limusiinit/vaunut",{"v":100,"d":"100.00"},{"v":125,"d":"125.00"},{"$f":"'Koristeet-Kukat-Lahjat-Matkat'!$C31-'Koristeet-Kukat-Lahjat-Matkat'!$D31","v":{"v":-25,"d":"-25.00 "}}]
[null,"Pysäköinti",{"v":0,"d":"0.00"},{"v":40,"d":"40.00"},{"$f":"'Koristeet-Kukat-Lahjat-Matkat'!$C32-'Koristeet-Kukat-Lahjat-Matkat'!$D32","v":{"v":-40,"d":"-40.00 "}}]
[null,"Taksit",{"v":0,"d":"0.00"},{"v":0,"d":"0.00"},{"$f":"'Koristeet-Kukat-Lahjat-Matkat'!$C33-'Koristeet-Kukat-Lahjat-Matkat'!$D33","v":{"v":0,"d":"0.00"}}]
[null,"Matkustus yhteensä",{"$f":"SUBTOTAL(109,Matkustus[ARVIOT])","v":{"v":100,"d":"100.00"}},{"$f":"SUBTOTAL(109,Matkustus[TOTEUTUNEET])","v":{"v":165,"d":"165.00"}},{"$f":"SUBTOTAL(109,Matkustus[YLI/ALLE])","v":{"v":-65,"d":"-65.00 "}}]
[]
["Muut kulut -selite on solussa oikealla.","Muut kulut"]
["Kirjoita tiedot Muut kulut -taulukkoon alkaen oikealla olevasta solusta.","LUOKKA","ARVIOT","TOTEUTUNEET","YLI/ALLE"]
[null,"Vihkitoimituksen suorittaja",{"v":0,"d":"0.00"},{"v":0,"d":"0.00"},{"$f":"'Koristeet-Kukat-Lahjat-Matkat'!$C38-'Koristeet-Kukat-Lahjat-Matkat'!$D38","v":{"v":0,"d":"0.00"}}]
[null,"Kirkon/seremoniapaikan maksu",{"v":40,"d":"40.00"},{"v":55,"d":"55.00"},{"$f":"'Koristeet-Kukat-Lahjat-Matkat'!$C39-'Koristeet-Kukat-Lahjat-Matkat'!$D39","v":{"v":-15,"d":"-15.00 "}}]
[null,"Hääjuhlan koordinaattori",{"v":0,"d":"0.00"},{"v":0,"d":"0.00"},{"$f":"'Koristeet-Kukat-Lahjat-Matkat'!$C40-'Koristeet-Kukat-Lahjat-Matkat'!$D40","v":{"v":0,"d":"0.00"}}]
[null,"Harjoitusateria",{"v":450,"d":"450.00"},{"v":450,"d":"450.00"},{"$f":"'Koristeet-Kukat-Lahjat-Matkat'!$C41-'Koristeet-Kukat-Lahjat-Matkat'!$D41","v":{"v":0,"d":"0.00"}}]
[null,"Kihlajaisjuhlat",{"v":20,"d":"20.00"},{"v":50,"d":"50.00"},{"$f":"'Koristeet-Kukat-Lahjat-Matkat'!$C42-'Koristeet-Kukat-Lahjat-Matkat'!$D42","v":{"v":-30,"d":"-30.00 "}}]
[null,"Morsiamen kunniaksi järjestävät juhlat",{"v":30,"d":"30.00"},{"v":20,"d":"20.00"},{"$f":"'Koristeet-Kukat-Lahjat-Matkat'!$C43-'Koristeet-Kukat-Lahjat-Matkat'!$D43","v":{"v":10,"d":"10.00"}}]
[null,"Kampaamot yms.",{"v":45,"d":"45.00"},{"v":46,"d":"46.00"},{"$f":"'Koristeet-Kukat-Lahjat-Matkat'!$C44-'Koristeet-Kukat-Lahjat-Matkat'!$D44","v":{"v":-1,"d":"-1.00 "}}]
[null,"Polttarit",{"v":0,"d":"0.00"},{"v":0,"d":"0.00"},{"$f":"'Koristeet-Kukat-Lahjat-Matkat'!$C45-'Koristeet-Kukat-Lahjat-Matkat'!$D45","v":{"v":0,"d":"0.00"}}]
[null,"Brunssi",{"v":300,"d":"300.00"},{"v":400,"d":"400.00"},{"$f":"'Koristeet-Kukat-Lahjat-Matkat'!$C46-'Koristeet-Kukat-Lahjat-Matkat'!$D46","v":{"v":-100,"d":"-100.00 "}}]
[null,"Hotellihuoneet",{"v":0,"d":"0.00"},{"v":0,"d":"0.00"},{"$f":"'Koristeet-Kukat-Lahjat-Matkat'!$C47-'Koristeet-Kukat-Lahjat-Matkat'!$D47","v":{"v":0,"d":"0.00"}}]
[null,"Muut kustannukset yhteensä",{"$f":"SUBTOTAL(109,MuutKulut[ARVIOT])","v":{"v":885,"d":"885.00"}},{"$f":"SUBTOTAL(109,MuutKulut[TOTEUTUNEET])","v":{"v":1021,"d":"1,021.00"}},{"$f":"SUBTOTAL(109,MuutKulut[YLI/ALLE])","v":{"v":-136,"d":"-136.00 "}}]